Workbook

Sheet 전통시장
A1: 주요생필품 가격동향
B2: (2019. 2월) | N2: (단위: 원)
A3: 구분 | B3: 품 목 | C3: 조 사 기 준 | D3: 전통시장 | G3: SSM
D4: 평균 | E4: 중리동 | F4: 법1,2동 | G4: 오정동 | H4: 대화동 | I4: 회 덕 동 | J4: 비래동 | K4: 송 촌 동 | L4: 신탄진동 | M4: 석봉,목상동 | N4: 덕암동
E5: 중리시장 | F5: 법동시장 | G5: 두아름 | H5: 우리마트 | I5: 하나로마트 | J5: 비래스토아 | K5: 하나로마트 | L5: 롯데슈퍼 | M5: 하나로마트 | N5: 모아마트
A6: 농 산 물 (14) | B6: 쌀 | C6: 청풍명월(20kg) | D6: =AVERAGE(E6:N6) -> 54222.22222 | E6: 53000 | F6: 57000 | G6: 52000 | I6: 53000 | J6: 54000 | K6: 53000 | L6: 56000 | M6: 55000 | N6: 55000
C7: 일반정미(20kg) | D7: =AVERAGE(E7:N7) -> 61000 | G7: 58000 | H7: 59000 | I7: - | J7: 63000 | L7: 없음 | N7: 64000
B8: 콩 | C8: 국산, 백태 1kg | D8: 9007.777778 | E8: 8570 | F8: 9400 | G8: 8500 | H8: 5000 | I8: 8600 | J8: =H8/400*1000 -> 12500 | K8: 12000 | L8: 없음 | M8: 5500 | N8: 11000
B9: 참깨 | C9: 국산 500g | D9: 16956.17188 | E9: 15000 | F9: 32300 | G9: 16000 | H9: =F9/G9*500 -> 1009.375 | I9: 14300 | J9: 26040 | K9: 없음 | L9: 없음 | M9: 14500 | N9: 16500
C10: 수입산, 500g | D10: 6843.333333 | E10: 7500 | F10: 12130 | G10: 8330 | H10: 4000 | I10: 없음 | J10: 5100 | L10: 없음 | N10: 4000
B11: 사과 | C11: 부사 400g1개, 중품 | D11: 4017.614213 | E11: 3000 | F11: 5500 | G11: 2500 | H11: 1760 | I11: 4000 | J11: 3500 | K11: 5000 | L11: 4340 | M11: 5500 | N11: =5000/394*400 -> 5076.142132
B12: 배 | C12: 신고배 600g1개, 중품 | D12: 4314.301075 | E12: 3500 | F12: 6000 | G12: 2000 | I12: 4000 | J12: 3700 | K12: 5000 | L12: 4290 | M12: 5500 | N12: =6500/806*600 -> 4838.709677
B13: 감귤 | C13: 100g 정도 10개 | D13: 3484.306719 | E13: 2500 | F13: 4000 | G13: 5000 | H13: 3040 | J13: 5000 | K13: 4400 | L13: 2500 | M13: 4500 | N13: =5000/1194*100 -> 418.760469
B14: 밤 | C14: 굵은것 1kg | D14: 7850 | E14: 7000 | F14: 7500 | G14: 6000 | I14: 5000 | J14: 2300 | K14: 7000 | L14: 없음 | M14: 6500 | N14: =4300/200*1000 -> 21500
B15: 무 | C15: 통무우 2kg | D15: 1276.711918 | E15: 1500 | F15: 1500 | G15: 1000 | H15: 1000 | I15: 1400 | J15: 1000 | K15: 1500 | L15: 1620 | M15: 1300 | N15: =1200/2534*2000 -> 947.1191792
B16: 배추 | C16: 통배추 2kg | D16: 1983.333333 | E16: 2000 | F16: 2500 | G16: 2500 | I16: 2200 | J16: 1500 | K16: 2500 | L16: 1500 | M16: 2000 | N16: 1150
B17: 고추가루 | C17: 국산, 400g | D17: 11796.875 | E17: 14000 | F17: 15000 | G17: 16000 | H17: =F17/G17*400 -> 375 | J17: =H17/500*400 -> 300 | K17: 17600 | L17: 없음 | M17: 13500 | N17: =13200/300*400 -> 17600
B18: 양파 | C18: 망에든것 1kg | D18: 1498 | E18: 2000 | F18: 1500 | G18: 2000 | H18: 800 | I18: 1500 | J18: 1000 | K18: 1900 | L18: 1500 | M18: 1500 | N18: 1280
B19: 대파 | C19: 1kg | D19: 2357.777778 | E19: 3000 | F19: 1500 | G19: 1500 | H19: 3330 | I19: 2910 | J19: 1300 | K19: 3550 | L19: 1,980(480상승) | M19: 1600 | N19: 2530
B20: 깐마늘 | C20: 국산, 중품, 100g | D20: 948 | E20: 1000 | F20: 850 | G20: 800 | H20: 1100 | I20: 800 | J20: 1800 | K20: 1000 | L20: 230 | M20: 900 | N20: 1000
B21: 콩나물 | C21: 수입콩, 포장, 300g | D21: 1317.777778 | E21: 1360 | F21: 1100 | G21: =1100/220*300 -> 1500 | H21: 1360 | I21: 없음 | J21: 1000 | K21: 1450 | L21: 1090 | M21: 1500 | N21: 1500
A22: 축 산 물 (4) | B22: 쇠고기 | C22: 한우등심1등급 600g | D22: 40625 | E22: 48000 | F22: 48000 | G22: 54000 | I22: 48000 | J22: =H22*6 -> 0 | K22: 39000 | L22: 42000 | M22: 46000 | N22: 없음
B23: 돼지고기 | C23: 국산, 삼겹살 600g | D23: 14800 | E23: 10800 | F23: 8700 | G23: 9000 | H23: 10000 | I23: 9900 | J23: =H23*6 -> 60000 | K23: 12900 | L23: 9600 | M23: 8700 | N23: 8400
B24: 생닭 | C24: 하림, 육계 1마리 1kg | D24: 6069 | E24: 6500 | F24: 6500 | G24: 5400 | H24: 5000 | I24: 6000 | J24: 5650 | K24: 6400 | L24: 6640 | M24: 6600 | N24: 6000
B25: 달걀 | C25: 대란 1판(30개) | D25: 4208 | E25: 4500 | F25: 3980 | G25: 4200 | H25: 4800 | I25: 5300 | J25: 4000 | K25: 3900 | L25: 4800 | M25: 3300 | N25: 3300
A26: 수 산 물 (5) | B26: 조기 | C26: 수입, 25cm정도, 1마리 | D26: 6830 | E26: 5000 | F26: 6500 | G26: 5000 | H26: 5000 | I26: 6000 | J26: 12000 | K26: 6000 | L26: 9000 | M26: 6900 | N26: 6900
B27: 동태 | C27: 수입, 냉동40cm1마리 | D27: 3268 | E27: 3000 | F27: 3000 | G27: 4000 | H27: 3000 | I27: 3000 | J27: 5000 | K27: 3000 | L27: 2980 | M27: 3750 | N27: 1950
B28: 오징어(냉동) | C28: 25cm정도1마리 | D28: 5183.333333 | E28: 5000 | F28: 4000 | G28: 4000 | H28: 4500 | I28: 6750 | J28: 10000 | K28: 3500 | L28: 없음 | M28: 4450 | N28: 4450
B29: 김 | C29: 재래생김 1속, 중품 | D29: 8700 | E29: 9000 | F29: 10800 | G29: 6000 | I29: 10500 | J29: 5500 | K29: 10800 | L29: 없음 | M29: 8500 | N29: 8500
B30: 멸치 | C30: 멸치(국물용) 500g | D30: 8655 | E30: 8000 | F30: 9580 | G30: 6500 | H30: 12500 | I30: 9500 | J30: 5660 | K30: 8400 | L30: 8750 | M30: 9160 | N30: 8500
A31: 공 산 품 (15) | B31: 밀가루 | C31: 제일제당중력분 1kg | D31: 1515.555556 | E31: 1550 | F31: 1200 | G31: 1600 | I31: 1450 | J31: 1500 | K31: 1690 | L31: 1800 | M31: 1450 | N31: 1400
B32: 설탕 | C32: 제일제당정백당 1kg | D32: 1927 | E32: 1850 | F32: 1580 | G32: 2100 | H32: 2200 | I32: 1650 | J32: 1950 | K32: 1690 | L32: 2200 | M32: 2200 | N32: 1850
B33: 두부 | C33: 국산콩, 풀무원(부침용), 300g | D33: 3176.666667 | E33: 3300 | F33: 3350 | G33: 3200 | I33: 3350 | J33: 2500 | K33: 3250 | L33: 3090 | M33: 3350 | N33: 3200
C34: 수입콩 (부침용) 300g | D34: 1162 | E34: 1030 | F34: 1150 | G34: 1240 | H34: 1000 | I34: 1200 | J34: 990 | K34: 1250 | L34: 1240 | M34: 1500 | N34: 1020
B35: 라면 | C35: 신라면 1봉지 | D35: 717 | E35: 680 | F35: 730 | G35: 750 | H35: 750 | I35: 700 | J35: 720 | K35: 680 | L35: 800 | M35: 680 | N35: 680
B36: 식용유 | C36: 백설표 1.8L 대두유 | D36: 4958 | E36: 4600 | F36: 4300 | G36: 6700 | H36: 4200 | I36: 4600 | J36: 4200 | K36: 6900 | L36: 4200 | M36: 4900 | N36: 4980
B37: 참기름 | C37: 오뚜기320ml 1병 | D37: 6691 | E37: 3800 | F37: 11100 | G37: 6500 | H37: 4300 | I37: 6500 | J37: 6510 | K37: 7250 | L37: 6200 | M37: 7500 | N37: 7250
B38: 분말커피 | C38: 동서맥심175g 1병 | D38: 10011.11111 | E38: 11200 | F38: 10350 | G38: 11500 | H38: 12500 | I38: 10320 | J38: 11650 | K38: 6080 | L38: 없음 | M38: 10400 | N38: 6100
B39: 소주 | C39: O2린 360ml, 1병 | D39: 1284 | E39: 1280 | F39: 1280 | G39: 1300 | H39: 1400 | I39: 1200 | J39: 1280 | K39: 1200 | L39: 1400 | M39: 1250 | N39: 1250
B40: 맥주 | C40: 카스 500ml 1병 | D40: 1557 | E40: 1600 | F40: 1460 | G40: 1600 | H40: 1600 | I40: 1380 | J40: 1500 | K40: 1730 | L40: 1700 | M40: 1500 | N40: 1500
B41: 청주 | C41: 백화수복, 1.8L 1병 | D41: 10460 | E41: 10500 | F41: 10200 | G41: 10500 | H41: 11000 | I41: 10550 | J41: 10500 | K41: 10250 | L41: 10500 | M41: 10300 | N41: 10300
B42: 화장지 | C42: 크리넥스 35mⅹ24롤(백색) | D42: 20988.88889 | E42: 20500 | F42: 20900 | G42: 22000 | I42: 18500 | J42: 18900 | K42: 24400 | L42: 23900 | M42: 19900 | N42: 19900
B43: 빵 | C43: 삼립 식빵 750g | D43: 2406.666667 | E43: 2450 | G43: 2600 | H43: 2500 | I43: 없음 | J43: 2500 | K43: 2190 | L43: 없음 | M43: 2200 | N43: 없음
B44: 우유 | C44: 매일우유 1000L | D44: 2987.777778 | E44: 2300 | F44: 4780 | G44: 2650 | I44: 2340 | J44: 2600 | K44: 4780 | L44: 2500 | M44: 2500 | N44: 2440
B45: 분유 | C45: 남양임페리얼 3단계 | D45: 28225 | E45: 27900 | G45: 없음 | I45: 없음 | J45: 31000 | K45: 26500 | L45: 없음 | N45: 27500
B46: 세제 | C46: 애경 스파크 3kg | D46: 6922.222222 | E46: 3950 | F46: 4050 | G46: 9900 | I46: 6500 | J46: =H46*3 -> 0 | K46: 10900 | L46: =12000/5000*3000 -> 7200 | M46: 8900 | N46: 10900
B47: 감자 | C47: 1kg | D47: 3472 | E47: 4000 | F47: 4000 | G47: 2000 | H47: 3500 | I47: 3200 | J47: 4000 | K47: 3500 | L47: 3500 | M47: 3200 | N47: 3820
